[Event "*** Titled Tuesday Blitz"]
[Site "Chess.com"]
[Date "2020.05.12"]
[Round "8"]
[White "Mili_Brizzi"]
[Black "druskacik"]
[Result "0-1"]
[WhiteElo "2463"]
[BlackElo "2650"]
[TimeControl "180+1"]
[EndTime "11:33:04 PDT"]
[Termination "druskacik won by resignation"]

1. d4 {[%clk 0:03:00.9]} 1... d5 {[%clk 0:02:57.5]} 2. c4 {[%clk 0:03:00.2]}
2... e6 {[%clk 0:02:56.9]} 3. Nf3 {[%clk 0:02:58.4]} 3... Nf6 {[%clk 0:02:56.6]}
4. g3 {[%clk 0:02:55.8]} 4... dxc4 {[%clk 0:02:55.7]} 5. Bg2 {[%clk 0:02:48.2]}
5... a6 {[%clk 0:02:55.3]} 6. O-O {[%clk 0:02:41.9]} 6... Nc6 {[%clk 0:02:55.8]}
7. e3 {[%clk 0:02:38.7]} 7... Rb8 {[%clk 0:02:55.2]} 8. Nfd2 {[%clk 0:02:21]}
8... e5 {[%clk 0:02:53.9]} 9. Bxc6+ {[%clk 0:02:14.5]} 9... bxc6 {[%clk
0:02:54.8]} 10. dxe5 {[%clk 0:02:12.3]} 10... Ng4 {[%clk 0:02:54.6]} 11. Nxc4
{[%clk 0:02:08.9]} 11... Be6 {[%clk 0:02:49.6]} 12. Nbd2 {[%clk 0:02:06.5]}
12... Bb4 {[%clk 0:02:45.4]} 13. Qe2 {[%clk 0:02:03.8]} 13... Bxd2 {[%clk
0:02:26.7]} 14. Bxd2 {[%clk 0:02:00.5]} 14... h5 {[%clk 0:02:26.2]} 15. Bc3
{[%clk 0:01:46.6]} 15... h4 {[%clk 0:02:01]} 16. Rad1 {[%clk 0:01:45.3]} 16...
Qg5 {[%clk 0:01:38.1]} 17. f4 {[%clk 0:01:34.2]} 17... Qh5 {[%clk 0:01:21]} 18.
gxh4 {[%clk 0:01:28.5]} 18... Qxh4 {[%clk 0:01:17.1]} 19. Rd2 {[%clk 0:01:26.7]}
19... Bxc4 {[%clk 0:00:59.1]} 20. Qxc4 {[%clk 0:01:21.3]} 20... Nxh2 {[%clk
0:00:51.7]} 21. Qxc6+ {[%clk 0:01:16.5]} 21... Kf8 {[%clk 0:00:51.5]} 22. Rg2
{[%clk 0:01:14.3]} 22... Nxf1 {[%clk 0:00:44.8]} 23. Qxc7 {[%clk 0:01:01.7]}
23... Rd8 {[%clk 0:00:37.6]} 24. Kxf1 {[%clk 0:00:54.1]} 24... Rh7 {[%clk
0:00:18.9]} 25. Bd4 {[%clk 0:00:48.3]} 25... Re8 {[%clk 0:00:13.8]} 26. Qd6+
{[%clk 0:00:36.2]} 26... Kg8 {[%clk 0:00:13.8]} 27. Qc6 {[%clk 0:00:35.9]} 27...
Rf8 {[%clk 0:00:12.6]} 28. Qxa6 {[%clk 0:00:25.4]} 28... Qh1+ {[%clk 0:00:11.5]}
29. Kf2 {[%clk 0:00:25.6]} 29... Qh4+ {[%clk 0:00:11.1]} 30. Kf1 {[%clk
0:00:25.5]} 30... Qh1+ {[%clk 0:00:11.3]} 31. Kf2 {[%clk 0:00:25.8]} 31... Qc1
{[%clk 0:00:10.9]} 32. Qf6 {[%clk 0:00:20.8]} 32... Qc2+ {[%clk 0:00:09.9]} 33.
Kf3 {[%clk 0:00:20.6]} 33... Qxg2+ {[%clk 0:00:10.1]} 34. Kxg2 {[%clk
0:00:20.1]} 34... gxf6 {[%clk 0:00:11]} 35. exf6 {[%clk 0:00:20.4]} 35... Rc8
{[%clk 0:00:11.2]} 36. a4 {[%clk 0:00:18.5]} 36... Rc2+ {[%clk 0:00:12.1]} 37.
Kf3 {[%clk 0:00:18.7]} 37... Rhh2 {[%clk 0:00:12]} 38. Ke4 {[%clk 0:00:18.9]}
38... Rxb2 {[%clk 0:00:12.3]} 39. a5 {[%clk 0:00:17.2]} 39... Ra2 {[%clk
0:00:12.6]} 40. Bb6 {[%clk 0:00:17.2]} 40... Rh5 {[%clk 0:00:12.8]} 41. f5
{[%clk 0:00:13.6]} 41... Rh4+ {[%clk 0:00:12.5]} 42. Ke5 {[%clk 0:00:13.9]}
42... Rha4 {[%clk 0:00:13.4]} 0-1

[Event "*** Titled Tuesday Blitz"]
[Site "Chess.com"]
[Date "2020.05.12"]
[Round "8"]
[White "Sunnika"]
[Black "Konek-Gorbunok"]
[Result "0-1"]
[WhiteElo "2291"]
[BlackElo "2180"]
[TimeControl "180+1"]
[EndTime "11:33:06 PDT"]
[Termination "Konek-Gorbunok won on time"]

1. e4 {[%clk 0:03:00.9]} 1... c5 {[%clk 0:02:39.2]} 2. Nf3 {[%clk 0:02:58.6]}
2... a6 {[%clk 0:02:38.8]} 3. c3 {[%clk 0:02:47.7]} 3... d6 {[%clk 0:02:38.3]}
4. d4 {[%clk 0:02:45.2]} 4... cxd4 {[%clk 0:02:39.2]} 5. cxd4 {[%clk 0:02:44.5]}
5... Nf6 {[%clk 0:02:40.1]} 6. Nc3 {[%clk 0:02:39.8]} 6... g6 {[%clk 0:02:40.4]}
7. Be3 {[%clk 0:02:38.4]} 7... Bg7 {[%clk 0:02:40.3]} 8. h3 {[%clk 0:02:35.7]}
8... O-O {[%clk 0:02:39.7]} 9. Be2 {[%clk 0:02:35.5]} 9... b5 {[%clk 0:02:39.1]}
10. a3 {[%clk 0:02:20.5]} 10... Bb7 {[%clk 0:02:38.6]} 11. d5 {[%clk 0:02:16.9]}
11... Nbd7 {[%clk 0:02:38.7]} 12. O-O {[%clk 0:02:15]} 12... Rc8 {[%clk
0:02:38.6]} 13. Bd4 {[%clk 0:02:06.3]} 13... Nc5 {[%clk 0:02:36.5]} 14. Nd2
{[%clk 0:01:36.9]} 14... e6 {[%clk 0:02:23.7]} 15. dxe6 {[%clk 0:01:32.9]} 15...
Nxe6 {[%clk 0:02:19.7]} 16. Be3 {[%clk 0:01:29.1]} 16... d5 {[%clk 0:02:19.7]}
17. exd5 {[%clk 0:01:24.4]} 17... Nxd5 {[%clk 0:02:18.3]} 18. Nxd5 {[%clk
0:01:17.8]} 18... Bxd5 {[%clk 0:02:18.2]} 19. Rb1 {[%clk 0:01:09.8]} 19... Nd4
{[%clk 0:01:52.7]} 20. Bxd4 {[%clk 0:01:06]} 20... Bxd4 {[%clk 0:01:51.3]} 21.
Bf3 {[%clk 0:01:05.4]} 21... Bxf3 {[%clk 0:01:37.2]} 22. Nxf3 {[%clk 0:01:02.7]}
22... Bf6 {[%clk 0:01:37]} 23. Qb3 {[%clk 0:00:56.1]} 23... Qc7 {[%clk
0:01:28.2]} 24. Rbd1 {[%clk 0:00:47.4]} 24... Qc2 {[%clk 0:01:20]} 25. Qb4
{[%clk 0:00:32.9]} 25... Qxb2 {[%clk 0:01:13.4]} 26. Qf4 {[%clk 0:00:27]} 26...
Rc4 {[%clk 0:00:59.5]} 27. Qh6 {[%clk 0:00:17.5]} 27... Bg7 {[%clk 0:00:47.4]}
28. Qe3 {[%clk 0:00:13.1]} 28... Rc3 {[%clk 0:00:45.9]} 29. Qa7 {[%clk 0:00:13]}
29... Rxa3 {[%clk 0:00:44.3]} 30. Rd7 {[%clk 0:00:13.1]} 30... Qf6 {[%clk
0:00:38.1]} 31. h4 {[%clk 0:00:10.7]} 31... h6 {[%clk 0:00:34.7]} 32. Rfd1
{[%clk 0:00:07.3]} 32... b4 {[%clk 0:00:28.9]} 33. h5 {[%clk 0:00:06.9]} 33...
g5 {[%clk 0:00:25.7]} 34. Qb7 {[%clk 0:00:06.5]} 34... b3 {[%clk 0:00:24.5]} 35.
Qb4 {[%clk 0:00:05.2]} 35... Qb2 {[%clk 0:00:18.6]} 36. R7d2 {[%clk 0:00:03.5]}
36... Bc3 {[%clk 0:00:15]} 37. Rxb2 {[%clk 0:00:01.5]} 37... Bxb4 {[%clk
0:00:14.8]} 0-1

[Event "*** Titled Tuesday Blitz"]
[Site "Chess.com"]
[Date "2020.05.12"]
[Round "8"]
[White "lamomiablanca"]
[Black "annacramling"]
[Result "1-0"]
[WhiteElo "2171"]
[BlackElo "1866"]
[TimeControl "180+1"]
[EndTime "11:33:06 PDT"]
[Termination "lamomiablanca won on time"]

1. e4 {[%clk 0:03:00.9]} 1... c5 {[%clk 0:02:59.9]} 2. Nf3 {[%clk 0:03:00]} 2...
a6 {[%clk 0:03:00]} 3. Nc3 {[%clk 0:02:59.1]} 3... Nc6 {[%clk 0:02:57.7]} 4. d4
{[%clk 0:02:58.5]} 4... cxd4 {[%clk 0:02:58.6]} 5. Nxd4 {[%clk 0:02:58.2]} 5...
e5 {[%clk 0:02:54.2]} 6. Nxc6 {[%clk 0:02:51.4]} 6... bxc6 {[%clk 0:02:53.4]} 7.
Bc4 {[%clk 0:02:47.2]} 7... Nf6 {[%clk 0:02:51.9]} 8. O-O {[%clk 0:02:46.5]}
8... Bb4 {[%clk 0:02:39.1]} 9. Bd3 {[%clk 0:02:43.3]} 9... O-O {[%clk
0:02:37.7]} 10. Bd2 {[%clk 0:02:42]} 10... Be7 {[%clk 0:02:32.8]} 11. Qe2 {[%clk
0:02:39.7]} 11... Qc7 {[%clk 0:02:30]} 12. Na4 {[%clk 0:02:37]} 12... d5 {[%clk
0:02:22]} 13. Nc3 {[%clk 0:02:31]} 13... Bb7 {[%clk 0:02:08.3]} 14. b3 {[%clk
0:02:21.9]} 14... Rfe8 {[%clk 0:01:36.8]} 15. Rae1 {[%clk 0:02:18.4]} 15... Bd6
{[%clk 0:01:36.5]} 16. Kh1 {[%clk 0:02:14.5]} 16... h6 {[%clk 0:01:32.5]} 17. f3
{[%clk 0:02:13.2]} 17... d4 {[%clk 0:01:26.5]} 18. Na4 {[%clk 0:02:11.2]} 18...
c5 {[%clk 0:01:23]} 19. Nb2 {[%clk 0:02:10.2]} 19... a5 {[%clk 0:01:00.1]} 20.
a4 {[%clk 0:02:08.4]} 20... Qe7 {[%clk 0:00:53.2]} 21. g3 {[%clk 0:02:04.7]}
21... Bc7 {[%clk 0:00:50.1]} 22. Nc4 {[%clk 0:02:01.2]} 22... Nd7 {[%clk
0:00:45.9]} 23. Kg2 {[%clk 0:01:53.9]} 23... Qf6 {[%clk 0:00:41]} 24. Kg1 {[%clk
0:01:44.9]} 24... Ba6 {[%clk 0:00:40.9]} 25. Rf2 {[%clk 0:01:42.2]} 25... Bxc4
{[%clk 0:00:40.4]} 26. Bxc4 {[%clk 0:01:41.1]} 26... Nb6 {[%clk 0:00:40.4]} 27.
Bb5 {[%clk 0:01:38.9]} 27... Red8 {[%clk 0:00:39.4]} 28. Ref1 {[%clk 0:01:37.6]}
28... Qe7 {[%clk 0:00:33.7]} 29. f4 {[%clk 0:01:35.7]} 29... exf4 {[%clk
0:00:33.1]} 30. gxf4 {[%clk 0:01:34.8]} 30... Nd7 {[%clk 0:00:25]} 31. Rg2
{[%clk 0:01:28]} 31... Nf6 {[%clk 0:00:23.7]} 32. Bd3 {[%clk 0:01:26.7]} 32...
Kh8 {[%clk 0:00:17.8]} 33. Kh1 {[%clk 0:01:17.6]} 33... Nd7 {[%clk 0:00:10.6]}
34. e5 {[%clk 0:01:15.4]} 34... Rg8 {[%clk 0:00:04.9]} 35. Qe4 {[%clk
0:01:13.5]} 35... Nf8 {[%clk 0:00:04.6]} 36. Qxa8 {[%clk 0:01:11.1]} 36... Ng6
{[%clk 0:00:03.4]} 37. Qe4 {[%clk 0:01:08.9]} 37... Nf8 {[%clk 0:00:03.3]} 38.
Rfg1 {[%clk 0:01:05.5]} 38... Qd7 {[%clk 0:00:01.4]} 39. f5 {[%clk 0:01:00.1]}
39... Bd8 {[%clk 0:00:01.5]} 40. f6 {[%clk 0:00:58.4]} 40... g6 {[%clk 0:00:02]}
41. Bxh6 {[%clk 0:00:57.1]} 41... Qe6 {[%clk 0:00:01.1]} 42. Qh4 {[%clk
0:00:52.5]} 42... Nh7 {[%clk 0:00:01.5]} 43. Bg7+ {[%clk 0:00:50.8]} 43... Rxg7
{[%clk 0:00:01.1]} 44. fxg7+ {[%clk 0:00:50.8]} 44... Kxg7 {[%clk 0:00:01.3]}
45. Qxd8 {[%clk 0:00:50.6]} 45... Qxe5 {[%clk 0:00:01.7]} 46. Rxg6+ {[%clk
0:00:45.5]} 46... fxg6 {[%clk 0:00:01.5]} 47. Rxg6+ {[%clk 0:00:44.6]} 47... Kf7
{[%clk 0:00:01.4]} 48. Qg8+ {[%clk 0:00:43.7]} 48... Ke7 {[%clk 0:00:01]} 49.
Qxh7+ {[%clk 0:00:43.4]} 1-0

[Event "*** Titled Tuesday Blitz"]
[Site "Chess.com"]
[Date "2020.05.12"]
[Round "8"]
[White "Baby_Legs"]
[Black "Andreikka"]
[Result "0-1"]
[WhiteElo "2735"]
[BlackElo "2944"]
[TimeControl "180+1"]
[EndTime "11:33:08 PDT"]
[Termination "Andreikka won by resignation"]

1. d4 {[%clk 0:03:00.9]} 1... Nf6 {[%clk 0:02:59.6]} 2. c4 {[%clk 0:03:01]} 2...
e6 {[%clk 0:02:59.6]} 3. Nc3 {[%clk 0:03:01.2]} 3... Bb4 {[%clk 0:02:59.3]} 4.
Qc2 {[%clk 0:03:01.3]} 4... d5 {[%clk 0:02:55.2]} 5. cxd5 {[%clk 0:03:01]} 5...
Qxd5 {[%clk 0:02:53.3]} 6. Nf3 {[%clk 0:02:57.1]} 6... Qf5 {[%clk 0:02:49.7]} 7.
Qb3 {[%clk 0:02:57]} 7... Nc6 {[%clk 0:02:47.5]} 8. e3 {[%clk 0:02:55.3]} 8...
O-O {[%clk 0:02:46.3]} 9. Be2 {[%clk 0:02:52.1]} 9... a5 {[%clk 0:02:43.9]} 10.
O-O {[%clk 0:02:47.9]} 10... e5 {[%clk 0:02:43.5]} 11. a3 {[%clk 0:02:38.7]}
11... Bd6 {[%clk 0:02:39.7]} 12. dxe5 {[%clk 0:02:19.2]} 12... Nxe5 {[%clk
0:02:38.7]} 13. Nd4 {[%clk 0:02:19.2]} 13... Qd7 {[%clk 0:02:38.1]} 14. Rd1
{[%clk 0:02:11.4]} 14... Qe7 {[%clk 0:02:22.7]} 15. Ndb5 {[%clk 0:01:55.7]}
15... Bc5 {[%clk 0:02:20]} 16. Na4 {[%clk 0:01:54.7]} 16... Bg4 {[%clk
0:01:27.6]} 17. f3 {[%clk 0:01:41.2]} 17... Bd7 {[%clk 0:01:27.1]} 18. Nxc5
{[%clk 0:01:34.7]} 18... Qxc5 {[%clk 0:01:25.7]} 19. Nd4 {[%clk 0:01:35]} 19...
a4 {[%clk 0:01:11.2]} 20. Qc2 {[%clk 0:01:24.1]} 20... Qb6 {[%clk 0:01:10.7]}
21. Bd2 {[%clk 0:01:09.9]} 21... c5 {[%clk 0:00:43.9]} 22. Nf5 {[%clk
0:01:09.7]} 22... Nd5 {[%clk 0:00:38.6]} 23. Ng3 {[%clk 0:00:47.9]} 23... Rfe8
{[%clk 0:00:33.3]} 24. Kh1 {[%clk 0:00:46.3]} 24... c4 {[%clk 0:00:22.3]} 25. e4
{[%clk 0:00:39.7]} 25... Ne3 {[%clk 0:00:21.9]} 26. Qc1 {[%clk 0:00:36.6]} 26...
Nxd1 {[%clk 0:00:21.4]} 27. Bxd1 {[%clk 0:00:32.1]} 27... Nd3 {[%clk 0:00:20.6]}
28. Be3 {[%clk 0:00:28.4]} 28... Qxb2 {[%clk 0:00:17.9]} 29. Qxb2 {[%clk
0:00:25.8]} 29... Nxb2 {[%clk 0:00:18.3]} 30. Bc2 {[%clk 0:00:25.4]} 30... c3
{[%clk 0:00:17.9]} 31. Ne2 {[%clk 0:00:24.2]} 31... Nc4 {[%clk 0:00:12.6]} 32.
Bd4 {[%clk 0:00:23.5]} 32... Rec8 {[%clk 0:00:13.1]} 33. Nxc3 {[%clk 0:00:23]}
33... b5 {[%clk 0:00:10]} 34. Nd5 {[%clk 0:00:22.5]} 34... Nxa3 {[%clk
0:00:10.3]} 35. Ne7+ {[%clk 0:00:21.9]} 35... Kf8 {[%clk 0:00:10.7]} 36. Nxc8
{[%clk 0:00:22]} 36... Nxc2 {[%clk 0:00:10.9]} 37. Bc5+ {[%clk 0:00:21.8]} 37...
Kg8 {[%clk 0:00:10.4]} 38. Rd1 {[%clk 0:00:20.7]} 38... Rxc8 {[%clk 0:00:08.8]}
39. Rxd7 {[%clk 0:00:20.6]} 39... b4 {[%clk 0:00:08.3]} 40. h4 {[%clk
0:00:16.3]} 40... h6 {[%clk 0:00:07.8]} 41. Bxb4 {[%clk 0:00:13.5]} 41... Nxb4
{[%clk 0:00:07.6]} 42. Rd4 {[%clk 0:00:14.1]} 42... Rb8 {[%clk 0:00:07.6]} 0-1

[Event "*** Titled Tuesday Blitz"]
[Site "Chess.com"]
[Date "2020.05.12"]
[Round "8"]
[White "The_Machine04"]
[Black "Ashedu66"]
[Result "1-0"]
[WhiteElo "2300"]
[BlackElo "2127"]
[TimeControl "180+1"]
[EndTime "11:33:08 PDT"]
[Termination "The_Machine04 won by resignation"]

1. d4 {[%clk 0:03:00.9]} 1... d5 {[%clk 0:02:58.3]} 2. Bf4 {[%clk 0:02:59.8]}
2... Nf6 {[%clk 0:02:56.8]} 3. e3 {[%clk 0:02:59.5]} 3... g6 {[%clk 0:02:56.7]}
4. Nc3 {[%clk 0:02:52.7]} 4... a6 {[%clk 0:02:54.9]} 5. h4 {[%clk 0:02:51.4]}
5... c5 {[%clk 0:02:45.6]} 6. Nf3 {[%clk 0:02:45]} 6... Nc6 {[%clk 0:02:43.3]}
7. a3 {[%clk 0:02:43.1]} 7... b6 {[%clk 0:02:32.9]} 8. Ne5 {[%clk 0:02:39.2]}
8... Bb7 {[%clk 0:02:26.4]} 9. Nxc6 {[%clk 0:02:36.6]} 9... Bxc6 {[%clk
0:02:25.1]} 10. Be5 {[%clk 0:02:37.5]} 10... h5 {[%clk 0:01:51.6]} 11. Bd3
{[%clk 0:02:32.9]} 11... Bg7 {[%clk 0:01:49]} 12. Qf3 {[%clk 0:02:27]} 12... Qd7
{[%clk 0:01:40]} 13. Qg3 {[%clk 0:02:10.7]} 13... O-O {[%clk 0:01:04.1]} 14. Qf3
{[%clk 0:02:07.1]} 14... c4 {[%clk 0:00:53.3]} 15. Be2 {[%clk 0:02:03]} 15... b5
{[%clk 0:00:42.4]} 16. Bxf6 {[%clk 0:01:56.6]} 16... Bxf6 {[%clk 0:00:36]} 17.
g4 {[%clk 0:01:57.5]} 17... Qxg4 {[%clk 0:00:25.7]} 18. Qxg4 {[%clk 0:01:58.4]}
18... hxg4 {[%clk 0:00:25.3]} 19. Bxg4 {[%clk 0:01:59.3]} 19... Kg7 {[%clk
0:00:24.1]} 20. h5 {[%clk 0:01:56.3]} 20... Rh8 {[%clk 0:00:23.9]} 21. Ke2
{[%clk 0:01:51.5]} 21... Rh6 {[%clk 0:00:21.2]} 22. hxg6 {[%clk 0:01:51]} 22...
fxg6 {[%clk 0:00:18.2]} 23. Rxh6 {[%clk 0:01:50]} 23... Kxh6 {[%clk 0:00:17.9]}
24. Rh1+ {[%clk 0:01:50.9]} 24... Kg7 {[%clk 0:00:18]} 25. Be6 {[%clk
0:01:50.8]} 25... Rd8 {[%clk 0:00:16.2]} 26. Rg1 {[%clk 0:01:49.8]} 26... a5
{[%clk 0:00:12.8]} 27. Bf5 {[%clk 0:01:39.4]} 27... Be8 {[%clk 0:00:12]} 28. f4
{[%clk 0:01:31.4]} 28... b4 {[%clk 0:00:10.9]} 29. axb4 {[%clk 0:01:26.8]} 29...
axb4 {[%clk 0:00:10.8]} 30. Nd1 {[%clk 0:01:27.3]} 30... Kh7 {[%clk 0:00:09.8]}
31. Rh1+ {[%clk 0:01:25.1]} 31... Kg7 {[%clk 0:00:09.4]} 32. Rg1 {[%clk
0:01:25.5]} 32... Kh7 {[%clk 0:00:09.3]} 33. Be6 {[%clk 0:01:17.5]} 33... Kg7
{[%clk 0:00:07.6]} 34. Nf2 {[%clk 0:01:11.1]} 34... Bf7 {[%clk 0:00:07.5]} 35.
Bf5 {[%clk 0:01:03.5]} 35... e6 {[%clk 0:00:06.5]} 36. Bg4 {[%clk 0:00:58.4]}
36... Ra8 {[%clk 0:00:06.9]} 37. Bf3 {[%clk 0:00:53.7]} 37... Ra2 {[%clk
0:00:06.2]} 38. Rb1 {[%clk 0:00:53.4]} 38... g5 {[%clk 0:00:03.8]} 39. fxg5
{[%clk 0:00:50]} 39... Bxg5 {[%clk 0:00:03.9]} 40. e4 {[%clk 0:00:43.2]} 40...
c3 {[%clk 0:00:02.4]} 41. Nd3 {[%clk 0:00:36.2]} 41... cxb2 {[%clk 0:00:02]} 42.
Rxb2 {[%clk 0:00:37.1]} 42... dxe4 {[%clk 0:00:01.7]} 43. Rxa2 {[%clk
0:00:34.3]} 43... exf3+ {[%clk 0:00:01.9]} 44. Kxf3 {[%clk 0:00:33.9]} 44... e5
{[%clk 0:00:02.2]} 45. Ra7 {[%clk 0:00:32.6]} 45... exd4 {[%clk 0:00:02]} 46.
Ne5 {[%clk 0:00:32.2]} 46... Kf6 {[%clk 0:00:02]} 47. Nxf7 {[%clk 0:00:31.4]}
1-0

[Event "*** Titled Tuesday Blitz"]
[Site "Chess.com"]
[Date "2020.05.12"]
[Round "8"]
[White "zala02"]
[Black "Gandrade2"]
[Result "1-0"]
[WhiteElo "2260"]
[BlackElo "2056"]
[TimeControl "180+1"]
[EndTime "11:33:09 PDT"]
[Termination "zala02 won on time"]

1. d4 {[%clk 0:03:00.9]} 1... d5 {[%clk 0:02:58.9]} 2. c4 {[%clk 0:02:55.7]}
2... e6 {[%clk 0:02:58.5]} 3. Nc3 {[%clk 0:02:54.9]} 3... a6 {[%clk 0:02:58.2]}
4. cxd5 {[%clk 0:02:47]} 4... exd5 {[%clk 0:02:57.7]} 5. Bf4 {[%clk 0:02:47.6]}
5... c6 {[%clk 0:02:57.3]} 6. e3 {[%clk 0:02:47.2]} 6... Bd6 {[%clk 0:02:56.8]}
7. Bd3 {[%clk 0:02:33.4]} 7... Nf6 {[%clk 0:02:54.3]} 8. Nge2 {[%clk 0:02:32.4]}
8... O-O {[%clk 0:02:51.6]} 9. O-O {[%clk 0:02:31.7]} 9... Bxf4 {[%clk
0:02:48.7]} 10. Nxf4 {[%clk 0:02:08.6]} 10... Re8 {[%clk 0:02:47.9]} 11. b4
{[%clk 0:02:05.2]} 11... Nbd7 {[%clk 0:02:14.6]} 12. Qc2 {[%clk 0:01:59.2]}
12... Qe7 {[%clk 0:02:08.9]} 13. Rab1 {[%clk 0:01:45.6]} 13... Ne4 {[%clk
0:01:59.3]} 14. a4 {[%clk 0:01:36.7]} 14... Ndf6 {[%clk 0:01:41.1]} 15. b5
{[%clk 0:01:19.1]} 15... Nxc3 {[%clk 0:01:29]} 16. Qxc3 {[%clk 0:01:15.5]} 16...
cxb5 {[%clk 0:01:28.5]} 17. axb5 {[%clk 0:01:15]} 17... a5 {[%clk 0:01:28.6]}
18. b6 {[%clk 0:01:12.4]} 18... Bd7 {[%clk 0:01:27.2]} 19. Bb5 {[%clk
0:00:51.7]} 19... Ne4 {[%clk 0:01:23.3]} 20. Qd3 {[%clk 0:00:47.2]} 20... Bf5
{[%clk 0:00:47.7]} 21. Bxe8 {[%clk 0:00:30.9]} 21... Ng3 {[%clk 0:00:47.3]} 22.
Qd2 {[%clk 0:00:16.9]} 22... Nxf1 {[%clk 0:00:46.6]} 23. Rxf1 {[%clk 0:00:17.8]}
23... Rxe8 {[%clk 0:00:46]} 24. Nxd5 {[%clk 0:00:18.2]} 24... Qg5 {[%clk
0:00:41.5]} 25. Nc7 {[%clk 0:00:17.3]} 25... Bh3 {[%clk 0:00:28.5]} 26. f4
{[%clk 0:00:17.2]} 26... Qg6 {[%clk 0:00:08.9]} 27. Nxe8 {[%clk 0:00:17.1]}
27... h6 {[%clk 0:00:06.9]} 28. Nc7 {[%clk 0:00:16.7]} 28... a4 {[%clk
0:00:06.3]} 29. Nb5 {[%clk 0:00:16.3]} 29... Bf5 {[%clk 0:00:05.2]} 30. Nc3
{[%clk 0:00:15.5]} 30... a3 {[%clk 0:00:05]} 31. Qa2 {[%clk 0:00:15.3]} 31...
Be6 {[%clk 0:00:02]} 32. Qxa3 {[%clk 0:00:15.2]} 32... Bh3 {[%clk 0:00:01.1]}
33. Qb2 {[%clk 0:00:15.1]} 1-0

[Event "*** Titled Tuesday Blitz"]
[Site "Chess.com"]
[Date "2020.05.12"]
[Round "8"]
[White "Batica1984"]
[Black "DanielDardha2005"]
[Result "1/2-1/2"]
[WhiteElo "2821"]
[BlackElo "2657"]
[TimeControl "180+1"]
[EndTime "11:33:10 PDT"]
[Termination "Game drawn by agreement"]

1. e4 {[%clk 0:03:00.9]} 1... c5 {[%clk 0:02:51.3]} 2. Nf3 {[%clk 0:02:59.9]}
2... Nc6 {[%clk 0:02:48.8]} 3. d4 {[%clk 0:02:57.4]} 3... cxd4 {[%clk
0:02:49.7]} 4. Nxd4 {[%clk 0:02:58.1]} 4... Nf6 {[%clk 0:02:50.1]} 5. Nc3 {[%clk
0:02:57.4]} 5... e5 {[%clk 0:02:49.7]} 6. Ndb5 {[%clk 0:02:54.4]} 6... d6 {[%clk
0:02:50]} 7. a4 {[%clk 0:02:50.4]} 7... a6 {[%clk 0:02:35.2]} 8. Na3 {[%clk
0:02:48]} 8... h6 {[%clk 0:02:33.3]} 9. Nc4 {[%clk 0:02:44.5]} 9... Be6 {[%clk
0:02:30.5]} 10. Be3 {[%clk 0:02:39.9]} 10... Be7 {[%clk 0:02:29.2]} 11. Nb6
{[%clk 0:02:33.9]} 11... Rb8 {[%clk 0:02:20.5]} 12. Be2 {[%clk 0:02:33.1]} 12...
O-O {[%clk 0:02:17.8]} 13. O-O {[%clk 0:02:32.7]} 13... Nd7 {[%clk 0:02:16.1]}
14. Nbd5 {[%clk 0:02:31]} 14... Bg5 {[%clk 0:02:15]} 15. Bc4 {[%clk 0:02:06.2]}
15... Rc8 {[%clk 0:02:01]} 16. Ba2 {[%clk 0:01:43.5]} 16... Bxe3 {[%clk
0:01:31.4]} 17. Nxe3 {[%clk 0:01:42.4]} 17... Nc5 {[%clk 0:01:30.3]} 18. Nf5
{[%clk 0:01:08]} 18... Bxf5 {[%clk 0:01:20.7]} 19. exf5 {[%clk 0:01:08.1]} 19...
Nd4 {[%clk 0:01:20.8]} 20. Qg4 {[%clk 0:00:56.6]} 20... Qg5 {[%clk 0:01:12]} 21.
Qxg5 {[%clk 0:00:54.7]} 21... hxg5 {[%clk 0:01:12.9]} 22. Nd5 {[%clk 0:00:55]}
22... Nxf5 {[%clk 0:00:59.3]} 23. g4 {[%clk 0:00:50.4]} 23... Nd4 {[%clk
0:00:59.6]} 24. Ne7+ {[%clk 0:00:50.2]} 24... Kh7 {[%clk 0:00:59.3]} 25. Nxc8
{[%clk 0:00:51]} 25... Rxc8 {[%clk 0:01:00]} 26. Bxf7 {[%clk 0:00:45.2]} 26...
Nxc2 {[%clk 0:00:56.5]} 27. Rac1 {[%clk 0:00:39.2]} 27... Nd3 {[%clk 0:00:55.7]}
28. Rcd1 {[%clk 0:00:39.3]} 28... Nf4 {[%clk 0:00:34.1]} 29. Rxd6 {[%clk
0:00:37.9]} 29... Rc7 {[%clk 0:00:33.3]} 30. Ba2 {[%clk 0:00:35.7]} 30... Nd4
{[%clk 0:00:33.1]} 31. Bb1+ {[%clk 0:00:35.7]} 31... g6 {[%clk 0:00:32.4]} 32.
Be4 {[%clk 0:00:32.5]} 32... Kg7 {[%clk 0:00:25.4]} 33. Rb6 {[%clk 0:00:32.5]}
33... Rc4 {[%clk 0:00:17.7]} 34. Rxb7+ {[%clk 0:00:32]} 34... Kf8 {[%clk
0:00:12.3]} 35. Re1 {[%clk 0:00:19]} 35... Nde2+ {[%clk 0:00:10.9]} 36. Rxe2
{[%clk 0:00:19.3]} 36... Nxe2+ {[%clk 0:00:10.8]} 37. Kf1 {[%clk 0:00:19.5]}
37... Rxe4 {[%clk 0:00:10.8]} 38. f3 {[%clk 0:00:20]} 38... Rc4 {[%clk
0:00:03.4]} 39. Kxe2 {[%clk 0:00:20.1]} 39... e4 {[%clk 0:00:03.4]} 40. fxe4
{[%clk 0:00:19.9]} 40... Rxe4+ {[%clk 0:00:03.8]} 41. Kf3 {[%clk 0:00:20.3]}
41... Rxa4 {[%clk 0:00:04.3]} 42. b4 {[%clk 0:00:20.5]} 42... a5 {[%clk
0:00:04.3]} 43. bxa5 {[%clk 0:00:20]} 43... Rxa5 {[%clk 0:00:05.2]} 1/2-1/2